[Event "Late-Titled-Tuesday-Blitz-January-23-2024"]
[Site "Chess.com"]
[Date "2024.01.23"]
[Round "6"]
[White "Brown_Mamba24"]
[Black "SpeedofLight0"]
[Result "0-1"]
[WhiteElo "2648"]
[BlackElo "2955"]
[TimeControl "180+1"]
[EndTime "15:03:33 PST"]
[Termination "SpeedofLight0 won by checkmate"]

1. d4 {[%clk 0:03:00.9]} 1... d5 {[%clk 0:02:59.1]} 2. Nf3 {[%clk 0:03:00.6]}
2... Nf6 {[%clk 0:02:59.2]} 3. c4 {[%clk 0:03:00.4]} 3... e6 {[%clk 0:02:59.4]}
4. g3 {[%clk 0:03:00.5]} 4... dxc4 {[%clk 0:02:54.1]} 5. Bg2 {[%clk 0:02:53.1]}
5... a6 {[%clk 0:02:54.4]} 6. a4 {[%clk 0:02:47.4]} 6... Nc6 {[%clk 0:02:54.1]}
7. O-O {[%clk 0:02:47.4]} 7... Bb4 {[%clk 0:02:53.2]} 8. Bd2 {[%clk 0:02:35.9]}
8... O-O {[%clk 0:02:48]} 9. Bxb4 {[%clk 0:02:29.3]} 9... Nxb4 {[%clk
0:02:48.9]} 10. Na3 {[%clk 0:02:20.6]} 10... b6 {[%clk 0:02:33]} 11. Nxc4 {[%clk
0:02:01.5]} 11... Bb7 {[%clk 0:02:32.6]} 12. Qb3 {[%clk 0:02:02.2]} 12... a5
{[%clk 0:02:31.9]} 13. Rad1 {[%clk 0:02:00.4]} 13... Bd5 {[%clk 0:02:29]} 14.
Nfe5 {[%clk 0:01:58]} 14... Ne4 {[%clk 0:02:28.2]} 15. f3 {[%clk 0:01:55.6]}
15... Nd6 {[%clk 0:02:23.9]} 16. e4 {[%clk 0:01:55.6]} 16... Nxc4 {[%clk
0:02:21.5]} 17. Nxc4 {[%clk 0:01:46]} 17... Bb7 {[%clk 0:02:21.4]} 18. Rf2
{[%clk 0:01:37.9]} 18... Qe7 {[%clk 0:02:19.4]} 19. Rfd2 {[%clk 0:01:36.5]}
19... Rfd8 {[%clk 0:02:17.3]} 20. f4 {[%clk 0:01:33.2]} 20... Bc6 {[%clk
0:02:14]} 21. d5 {[%clk 0:01:02.6]} 21... exd5 {[%clk 0:02:05.7]} 22. exd5
{[%clk 0:01:03.5]} 22... Qc5+ {[%clk 0:01:59.9]} 23. Ne3 {[%clk 0:00:56.5]}
23... Bxa4 {[%clk 0:01:57.3]} 24. Qxa4 {[%clk 0:00:52.7]} 24... Qxe3+ {[%clk
0:01:57.3]} 25. Kh1 {[%clk 0:00:52.9]} 25... Rd6 {[%clk 0:01:51.4]} 26. Rd4
{[%clk 0:00:48.7]} 26... Re8 {[%clk 0:01:48.9]} 27. h4 {[%clk 0:00:34.3]} 27...
Re7 {[%clk 0:01:44.9]} 28. h5 {[%clk 0:00:19.1]} 28... Qxg3 {[%clk 0:01:42.3]}
29. Rxb4 {[%clk 0:00:18.8]} 29... Re1+ {[%clk 0:01:39]} 30. Bf1 {[%clk
0:00:16.1]} 30... Qf3+ {[%clk 0:01:34.8]} 31. Kg1 {[%clk 0:00:12.8]} 31... Qxf1+
{[%clk 0:01:34.3]} 32. Kh2 {[%clk 0:00:10.3]} 32... Re2+ {[%clk 0:01:33.3]} 33.
Kg3 {[%clk 0:00:06.9]} 33... Rg2+ {[%clk 0:01:33.2]} 34. Kh3 {[%clk 0:00:05]}
34... Qf3+ {[%clk 0:01:33.1]} 35. Kh4 {[%clk 0:00:03]} 35... Qg3# {[%clk
0:01:34]} 0-1

[Event "Late-Titled-Tuesday-Blitz-January-23-2024"]
[Site "Chess.com"]
[Date "2024.01.23"]
[Round "6"]
[White "SaqoChess_Twitch"]
[Black "GMBenjaminBok"]
[Result "0-1"]
[WhiteElo "2626"]
[BlackElo "2886"]
[TimeControl "180+1"]
[EndTime "15:03:36 PST"]
[Termination "GMBenjaminBok won by checkmate"]

1. d4 {[%clk 0:03:00.9]} 1... Nf6 {[%clk 0:02:59.3]} 2. c4 {[%clk 0:03:01.2]}
2... e6 {[%clk 0:02:59.9]} 3. Nc3 {[%clk 0:03:01.5]} 3... Bb4 {[%clk 0:03:00.5]}
4. e3 {[%clk 0:03:01.3]} 4... O-O {[%clk 0:03:00.1]} 5. a3 {[%clk 0:03:01.8]}
5... Bxc3+ {[%clk 0:03:00]} 6. bxc3 {[%clk 0:03:02.7]} 6... d6 {[%clk
0:03:00.4]} 7. Bd3 {[%clk 0:03:03.3]} 7... e5 {[%clk 0:03:00.2]} 8. Ne2 {[%clk
0:03:00.3]} 8... e4 {[%clk 0:03:00.6]} 9. Bb1 {[%clk 0:03:00.2]} 9... Be6 {[%clk
0:02:52.3]} 10. Ng3 {[%clk 0:02:58.6]} 10... Bxc4 {[%clk 0:02:43.4]} 11. Nxe4
{[%clk 0:02:58.5]} 11... Nbd7 {[%clk 0:02:43.4]} 12. Nxf6+ {[%clk 0:02:55.4]}
12... Nxf6 {[%clk 0:02:34.4]} 13. Bd3 {[%clk 0:02:49.4]} 13... b5 {[%clk
0:02:24.4]} 14. O-O {[%clk 0:02:44.6]} 14... d5 {[%clk 0:02:23.4]} 15. a4 {[%clk
0:02:42.6]} 15... a6 {[%clk 0:02:23.1]} 16. Ba3 {[%clk 0:02:38.3]} 16... Re8
{[%clk 0:02:22.9]} 17. Bxc4 {[%clk 0:02:30.6]} 17... bxc4 {[%clk 0:02:21.1]} 18.
Qc2 {[%clk 0:02:26]} 18... Qd7 {[%clk 0:02:19]} 19. h3 {[%clk 0:02:18.8]} 19...
h6 {[%clk 0:02:16.7]} 20. Rfe1 {[%clk 0:02:17.2]} 20... Rab8 {[%clk 0:02:15.2]}
21. Rab1 {[%clk 0:02:17.1]} 21... Qc6 {[%clk 0:02:11.2]} 22. Bb4 {[%clk
0:01:52.8]} 22... Rb7 {[%clk 0:01:15.3]} 23. a5 {[%clk 0:01:47.1]} 23... Rb5
{[%clk 0:01:13.3]} 24. f3 {[%clk 0:01:47.2]} 24... Re6 {[%clk 0:01:09]} 25. Re2
{[%clk 0:01:46.5]} 25... Rb8 {[%clk 0:01:07.4]} 26. Rbe1 {[%clk 0:01:46.3]}
26... Rbe8 {[%clk 0:01:07.2]} 27. g4 {[%clk 0:01:41.3]} 27... Qa8 {[%clk
0:00:47.7]} 28. h4 {[%clk 0:01:35.8]} 28... Qc8 {[%clk 0:00:29.1]} 29. g5 {[%clk
0:01:34.8]} 29... hxg5 {[%clk 0:00:27.4]} 30. hxg5 {[%clk 0:01:35.7]} 30... Nh7
{[%clk 0:00:27.8]} 31. Rh2 {[%clk 0:01:17.4]} 31... Nxg5 {[%clk 0:00:26.2]} 32.
Kf2 {[%clk 0:01:18]} 32... Rf6 {[%clk 0:00:24.4]} 33. Reh1 {[%clk 0:01:11]}
33... Rxf3+ {[%clk 0:00:24]} 34. Kg2 {[%clk 0:01:11.3]} 34... Qg4# {[%clk
0:00:23.2]} 0-1

[Event "Late-Titled-Tuesday-Blitz-January-23-2024"]
[Site "Chess.com"]
[Date "2024.01.23"]
[Round "6"]
[White "Iuckyducky"]
[Black "Sjakkerntobi"]
[Result "0-1"]
[WhiteElo "2358"]
[BlackElo "2506"]
[TimeControl "180+1"]
[EndTime "15:03:36 PST"]
[Termination "Sjakkerntobi won by resignation"]

1. d4 {[%clk 0:02:50.7]} 1... Nf6 {[%clk 0:02:59.5]} 2. c4 {[%clk 0:02:50.6]}
2... e6 {[%clk 0:03:00.1]} 3. Nf3 {[%clk 0:02:49.6]} 3... c5 {[%clk 0:03:00.5]}
4. g3 {[%clk 0:02:47.6]} 4... d5 {[%clk 0:02:56.6]} 5. Bg2 {[%clk 0:02:45.6]}
5... Nc6 {[%clk 0:02:56.6]} 6. O-O {[%clk 0:02:45.2]} 6... Be7 {[%clk
0:02:56.6]} 7. cxd5 {[%clk 0:02:42.2]} 7... exd5 {[%clk 0:02:56.8]} 8. dxc5
{[%clk 0:02:42.8]} 8... Bxc5 {[%clk 0:02:57.7]} 9. e3 {[%clk 0:02:31.9]} 9...
O-O {[%clk 0:02:57.4]} 10. Nbd2 {[%clk 0:02:28.8]} 10... Bb6 {[%clk 0:02:55.4]}
11. Nb3 {[%clk 0:02:25.9]} 11... Bg4 {[%clk 0:02:55.2]} 12. h3 {[%clk
0:02:21.6]} 12... Bh5 {[%clk 0:02:54.9]} 13. Bd2 {[%clk 0:02:12.1]} 13... Ne4
{[%clk 0:02:54.6]} 14. Bc3 {[%clk 0:02:10.3]} 14... Nxc3 {[%clk 0:02:54.2]} 15.
bxc3 {[%clk 0:02:11.2]} 15... Rc8 {[%clk 0:02:54.4]} 16. Qd2 {[%clk 0:01:57.3]}
16... Qf6 {[%clk 0:02:48.6]} 17. Nfd4 {[%clk 0:01:42.6]} 17... Rfd8 {[%clk
0:02:48.4]} 18. a4 {[%clk 0:01:40]} 18... Ne5 {[%clk 0:02:45.4]} 19. a5 {[%clk
0:01:24.8]} 19... Bc7 {[%clk 0:02:45.8]} 20. Nc5 {[%clk 0:01:14.2]} 20... b6
{[%clk 0:02:30.3]} 21. Na6 {[%clk 0:01:08.8]} 21... Bd6 {[%clk 0:02:27]} 22.
axb6 {[%clk 0:01:08.7]} 22... axb6 {[%clk 0:02:27.8]} 23. Bxd5 {[%clk
0:01:01.3]} 23... Bc5 {[%clk 0:02:28.1]} 24. Bg2 {[%clk 0:00:22.8]} 24... Nf3+
{[%clk 0:02:23.6]} 25. Bxf3 {[%clk 0:00:21.7]} 25... Bxf3 {[%clk 0:02:24]} 26.
Qa2 {[%clk 0:00:15.7]} 26... Bd5 {[%clk 0:02:22.4]} 27. Qe2 {[%clk 0:00:13.3]}
27... Bxd4 {[%clk 0:02:14.9]} 28. cxd4 {[%clk 0:00:13.5]} 28... Bc4 {[%clk
0:02:15.5]} 29. Qg4 {[%clk 0:00:09.7]} 29... Bxf1 {[%clk 0:02:14.8]} 30. Rxf1
{[%clk 0:00:10.6]} 30... Qd6 {[%clk 0:02:13.2]} 31. Rb1 {[%clk 0:00:06.9]} 31...
Ra8 {[%clk 0:02:12.9]} 32. Nb4 {[%clk 0:00:07.3]} 32... Ra4 {[%clk 0:02:05.4]}
33. Nd3 {[%clk 0:00:07.6]} 33... Ra2 {[%clk 0:01:54]} 34. Kh2 {[%clk 0:00:07.5]}
34... Rd2 {[%clk 0:01:46.3]} 35. Rb3 {[%clk 0:00:04.9]} 35... Qd5 {[%clk
0:01:38.4]} 36. Ra3 {[%clk 0:00:05.4]} 36... Qb5 {[%clk 0:01:36.6]} 37. Qf5
{[%clk 0:00:05]} 37... Qxf5 {[%clk 0:01:36.5]} 0-1

[Event "Late-Titled-Tuesday-Blitz-January-23-2024"]
[Site "Chess.com"]
[Date "2024.01.23"]
[Round "6"]
[White "RamyresCoelho"]
[Black "KacperPolOK"]
[Result "0-1"]
[WhiteElo "2261"]
[BlackElo "2472"]
[TimeControl "180+1"]
[EndTime "15:03:42 PST"]
[Termination "KacperPolOK won by resignation"]

1. e4 {[%clk 0:02:59.2]} 1... c5 {[%clk 0:02:59]} 2. Nf3 {[%clk 0:02:59.3]} 2...
Nc6 {[%clk 0:02:58.9]} 3. d4 {[%clk 0:02:59.4]} 3... cxd4 {[%clk 0:02:59.8]} 4.
c3 {[%clk 0:02:59.7]} 4... e5 {[%clk 0:02:56.5]} 5. cxd4 {[%clk 0:02:57.8]} 5...
exd4 {[%clk 0:02:57.4]} 6. Nxd4 {[%clk 0:02:57.9]} 6... Nf6 {[%clk 0:02:57.8]}
7. Nc3 {[%clk 0:02:57.2]} 7... Bb4 {[%clk 0:02:57.2]} 8. Nxc6 {[%clk 0:02:57.3]}
8... dxc6 {[%clk 0:02:57]} 9. Qxd8+ {[%clk 0:02:55.9]} 9... Kxd8 {[%clk
0:02:57.9]} 10. Bd3 {[%clk 0:02:52.4]} 10... Ke7 {[%clk 0:02:54.7]} 11. Bg5
{[%clk 0:02:51.2]} 11... h6 {[%clk 0:02:54.5]} 12. Bxf6+ {[%clk 0:02:50.5]}
12... gxf6 {[%clk 0:02:54.3]} 13. O-O-O {[%clk 0:02:51.4]} 13... b5 {[%clk
0:02:53.3]} 14. a3 {[%clk 0:02:51]} 14... Bd6 {[%clk 0:02:48.5]} 15. g3 {[%clk
0:02:50.4]} 15... a5 {[%clk 0:02:42.9]} 16. f4 {[%clk 0:02:42.7]} 16... Bg4
{[%clk 0:02:38]} 17. Rd2 {[%clk 0:02:38.8]} 17... b4 {[%clk 0:02:31.9]} 18. Nb1
{[%clk 0:02:35.2]} 18... Rhd8 {[%clk 0:02:24.5]} 19. Be2 {[%clk 0:02:33.2]}
19... Be6 {[%clk 0:02:16.4]} 20. Rhd1 {[%clk 0:02:26.8]} 20... Bb3 {[%clk
0:01:56.6]} 21. Re1 {[%clk 0:02:24.3]} 21... Bc5 {[%clk 0:01:56]} 22. Rxd8
{[%clk 0:02:20.5]} 22... Rxd8 {[%clk 0:01:56.9]} 23. Bf3 {[%clk 0:01:33.6]}
23... Bf2 {[%clk 0:01:41.8]} 24. Rf1 {[%clk 0:01:28.6]} 24... Be3+ {[%clk
0:01:41.3]} 25. Nd2 {[%clk 0:01:18.7]} 25... Rxd2 {[%clk 0:01:36.2]} 26. Kb1
{[%clk 0:01:11.1]} 26... bxa3 {[%clk 0:01:35.8]} 27. bxa3 {[%clk 0:01:10.7]}
27... Ba2+ {[%clk 0:01:33.8]} 28. Kc1 {[%clk 0:01:05.8]} 28... Rf2+ {[%clk
0:01:32.1]} 29. Kd1 {[%clk 0:01:04.4]} 29... Rxf1+ {[%clk 0:01:29]} 30. Ke2
{[%clk 0:01:05.3]} 30... Rxf3 {[%clk 0:01:26.8]} 31. Kxf3 {[%clk 0:01:06.2]}
31... Bc1 {[%clk 0:01:27.4]} 32. a4 {[%clk 0:01:05.6]} 32... Ba3 {[%clk
0:01:28.3]} 33. e5 {[%clk 0:01:05.5]} 33... Bb3 {[%clk 0:01:26.9]} 34. exf6+
{[%clk 0:01:05.1]} 34... Kxf6 {[%clk 0:01:26.9]} 35. g4 {[%clk 0:01:04.9]} 35...
Bxa4 {[%clk 0:01:26.6]} 36. h4 {[%clk 0:01:05.8]} 36... Bd1+ {[%clk 0:01:23.3]}
37. Kg3 {[%clk 0:01:05.3]} 37... a4 {[%clk 0:01:20.4]} 38. g5+ {[%clk
0:01:06.2]} 38... hxg5 {[%clk 0:01:20.4]} 39. fxg5+ {[%clk 0:01:07.1]} 39... Kg6
{[%clk 0:01:20.9]} 40. Kf4 {[%clk 0:01:07.9]} 40... Bd6+ {[%clk 0:01:19.7]} 41.
Ke4 {[%clk 0:01:07.8]} 41... Bf3+ {[%clk 0:01:19.6]} 42. Kxf3 {[%clk 0:01:07.3]}
42... a3 {[%clk 0:01:18.8]} 43. Kg4 {[%clk 0:01:07.4]} 43... Be7 {[%clk
0:01:14.6]} 44. h5+ {[%clk 0:01:08.3]} 44... Kg7 {[%clk 0:01:14.9]} 45. Kf5
{[%clk 0:01:07.4]} 45... a2 {[%clk 0:01:14.1]} 46. h6+ {[%clk 0:01:05.1]} 46...
Kh7 {[%clk 0:01:13.6]} 47. g6+ {[%clk 0:01:02.4]} 47... fxg6+ {[%clk 0:01:13.1]}
48. Ke6 {[%clk 0:01:03.3]} 48... Bf8 {[%clk 0:01:12.8]} 49. Kf7 {[%clk
0:01:03.2]} 49... Bxh6 {[%clk 0:01:12]} 0-1

[Event "Late-Titled-Tuesday-Blitz-January-23-2024"]
[Site "Chess.com"]
[Date "2024.01.23"]
[Round "6"]
[White "WPWPWP-2015"]
[Black "Alex_Sahakyan2006"]
[Result "0-1"]
[WhiteElo "2501"]
[BlackElo "2730"]
[TimeControl "180+1"]
[EndTime "15:03:49 PST"]
[Termination "Alex_Sahakyan2006 won on time"]

1. e4 {[%clk 0:03:00.9]} 1... e5 {[%clk 0:02:56.2]} 2. Nf3 {[%clk 0:03:00.8]}
2... Nf6 {[%clk 0:02:55.9]} 3. Nc3 {[%clk 0:02:59.6]} 3... Nc6 {[%clk
0:02:54.9]} 4. Bb5 {[%clk 0:02:58.5]} 4... Bb4 {[%clk 0:02:48]} 5. O-O {[%clk
0:02:57.6]} 5... O-O {[%clk 0:02:29.3]} 6. d3 {[%clk 0:02:57.1]} 6... d6 {[%clk
0:02:22.6]} 7. h3 {[%clk 0:02:56.2]} 7... Ne7 {[%clk 0:02:21.3]} 8. Re1 {[%clk
0:02:51]} 8... c6 {[%clk 0:02:15.1]} 9. Ba4 {[%clk 0:02:46.9]} 9... Ng6 {[%clk
0:02:13.3]} 10. d4 {[%clk 0:02:43.1]} 10... a5 {[%clk 0:01:57.7]} 11. a3 {[%clk
0:02:35.3]} 11... Bxc3 {[%clk 0:01:56.5]} 12. bxc3 {[%clk 0:02:35.3]} 12... d5
{[%clk 0:01:40.3]} 13. Nxe5 {[%clk 0:01:41.8]} 13... Nxe4 {[%clk 0:01:30.5]} 14.
Bd2 {[%clk 0:01:14.5]} 14... Nxe5 {[%clk 0:01:22.3]} 15. dxe5 {[%clk 0:01:13.8]}
15... Qh4 {[%clk 0:01:22.7]} 16. Rxe4 {[%clk 0:00:39.9]} 16... Qxe4 {[%clk
0:01:22.2]} 17. Bb3 {[%clk 0:00:37.8]} 17... a4 {[%clk 0:01:21.1]} 18. Ba2
{[%clk 0:00:37]} 18... Qxe5 {[%clk 0:01:20.6]} 19. c4 {[%clk 0:00:34.1]} 19...
dxc4 {[%clk 0:01:12.4]} 20. Bxc4 {[%clk 0:00:32.5]} 20... Rd8 {[%clk 0:01:11.7]}
21. Bd3 {[%clk 0:00:31.9]} 21... Bf5 {[%clk 0:01:09.5]} 22. Be3 {[%clk
0:00:14.3]} 22... Bxd3 {[%clk 0:01:08.7]} 23. cxd3 {[%clk 0:00:14.4]} 23... Rxd3
{[%clk 0:01:09.2]} 24. Qf1 {[%clk 0:00:05.1]} 24... Rad8 {[%clk 0:01:08.4]} 25.
Rb1 {[%clk 0:00:04.2]} 25... b5 {[%clk 0:01:07]} 26. Qe1 {[%clk 0:00:02.5]}
26... Qd6 {[%clk 0:01:05.6]} 0-1

[Event "Late-Titled-Tuesday-Blitz-January-23-2024"]
[Site "Chess.com"]
[Date "2024.01.23"]
[Round "6"]
[White "diamonds13"]
[Black "M1711"]
[Result "0-1"]
[WhiteElo "2372"]
[BlackElo "2647"]
[TimeControl "180+1"]
[EndTime "15:03:50 PST"]
[Termination "M1711 won by checkmate"]

1. d4 {[%clk 0:03:00.9]} 1... Nf6 {[%clk 0:03:00.3]} 2. c4 {[%clk 0:03:00.7]}
2... e6 {[%clk 0:03:00.9]} 3. Nc3 {[%clk 0:03:00.8]} 3... Bb4 {[%clk 0:03:01.1]}
4. e3 {[%clk 0:03:01.2]} 4... O-O {[%clk 0:02:59.7]} 5. Bd3 {[%clk 0:03:01.3]}
5... d6 {[%clk 0:02:56.4]} 6. Ne2 {[%clk 0:03:00.5]} 6... e5 {[%clk 0:02:55.9]}
7. a3 {[%clk 0:02:59.9]} 7... Bxc3+ {[%clk 0:02:54.8]} 8. Nxc3 {[%clk
0:03:00.1]} 8... Re8 {[%clk 0:02:54.6]} 9. dxe5 {[%clk 0:02:54.3]} 9... dxe5
{[%clk 0:02:54.4]} 10. Qc2 {[%clk 0:02:54.9]} 10... Nbd7 {[%clk 0:02:46.2]} 11.
b4 {[%clk 0:02:54.2]} 11... e4 {[%clk 0:02:39]} 12. Nxe4 {[%clk 0:02:40.5]}
12... Ne5 {[%clk 0:02:39.3]} 13. Nxf6+ {[%clk 0:02:35.7]} 13... Qxf6 {[%clk
0:02:38.7]} 14. Ra2 {[%clk 0:02:19.9]} 14... Nxd3+ {[%clk 0:02:33.1]} 15. Qxd3
{[%clk 0:02:19.8]} 15... Bf5 {[%clk 0:02:33.2]} 16. Qb3 {[%clk 0:02:07.1]} 16...
Qg6 {[%clk 0:02:24.7]} 17. O-O {[%clk 0:01:56.6]} 17... Bd3 {[%clk 0:02:23.8]}
18. Rd1 {[%clk 0:01:51.9]} 18... Be4 {[%clk 0:02:22.9]} 19. f3 {[%clk
0:01:44.8]} 19... Bxf3 {[%clk 0:02:21.5]} 20. Rf1 {[%clk 0:01:44.8]} 20... Be4
{[%clk 0:02:13]} 21. Raf2 {[%clk 0:01:43.3]} 21... Rad8 {[%clk 0:02:08.5]} 22.
c5 {[%clk 0:01:28.6]} 22... Bd5 {[%clk 0:01:46.8]} 23. Qc3 {[%clk 0:01:28.4]}
23... Re4 {[%clk 0:01:40.3]} 24. g3 {[%clk 0:01:17.1]} 24... c6 {[%clk
0:01:31.7]} 25. Bb2 {[%clk 0:00:53.8]} 25... Rde8 {[%clk 0:01:29.2]} 26. Bc1
{[%clk 0:00:41.5]} 26... h5 {[%clk 0:01:28]} 27. Bb2 {[%clk 0:00:24.7]} 27...
Rxe3 {[%clk 0:01:22.4]} 28. Qd2 {[%clk 0:00:11.8]} 28... h4 {[%clk 0:01:14.7]}
29. Rf6 {[%clk 0:00:10.4]} 29... Rxg3+ {[%clk 0:01:08.3]} 30. Kf2 {[%clk
0:00:06]} 30... Rg2# {[%clk 0:01:08.4]} 0-1

[Event "Late-Titled-Tuesday-Blitz-January-23-2024"]
[Site "Chess.com"]
[Date "2024.01.23"]
[Round "6"]
[White "stregachess"]
[Black "Carlitus2004"]
[Result "0-1"]
[WhiteElo "2105"]
[BlackElo "2403"]
[TimeControl "180+1"]
[EndTime "15:03:59 PST"]
[Termination "Carlitus2004 won by resignation"]

1. d4 {[%clk 0:03:00.9]} 1... Nf6 {[%clk 0:02:56.4]} 2. Nf3 {[%clk 0:03:00.3]}
2... b6 {[%clk 0:02:56.2]} 3. Bf4 {[%clk 0:03:00.1]} 3... Bb7 {[%clk 0:02:56.7]}
4. e3 {[%clk 0:03:00.1]} 4... g6 {[%clk 0:02:57.4]} 5. Be2 {[%clk 0:02:59.1]}
5... Bg7 {[%clk 0:02:58.1]} 6. O-O {[%clk 0:02:58.4]} 6... O-O {[%clk 0:02:59]}
7. c4 {[%clk 0:02:56.5]} 7... d6 {[%clk 0:02:59.1]} 8. Nc3 {[%clk 0:02:56.2]}
8... Nbd7 {[%clk 0:02:55]} 9. h3 {[%clk 0:02:55.3]} 9... Qe8 {[%clk 0:02:54]}
10. Rc1 {[%clk 0:02:52.7]} 10... e5 {[%clk 0:02:54.1]} 11. Bh2 {[%clk 0:02:52]}
11... Ne4 {[%clk 0:02:49]} 12. Nb5 {[%clk 0:02:11.2]} 12... Qd8 {[%clk
0:02:43.3]} 13. dxe5 {[%clk 0:02:10.7]} 13... dxe5 {[%clk 0:02:42.8]} 14. Qc2
{[%clk 0:01:53.6]} 14... a6 {[%clk 0:02:40.5]} 15. Na3 {[%clk 0:01:43.9]} 15...
Qe7 {[%clk 0:02:40.7]} 16. Rcd1 {[%clk 0:01:40.6]} 16... Rad8 {[%clk 0:02:35.9]}
17. Nb1 {[%clk 0:01:37.8]} 17... Rfe8 {[%clk 0:02:30.4]} 18. Nbd2 {[%clk
0:01:37.7]} 18... Ndc5 {[%clk 0:02:29.8]} 19. Nxe4 {[%clk 0:01:26.8]} 19... Bxe4
{[%clk 0:02:24.1]} 20. Qc1 {[%clk 0:01:20.6]} 20... a5 {[%clk 0:02:23.8]} 21.
Rxd8 {[%clk 0:01:17.6]} 21... Rxd8 {[%clk 0:02:23.9]} 22. Rd1 {[%clk 0:01:17.8]}
22... Bd3 {[%clk 0:02:06.3]} 23. Bf1 {[%clk 0:00:49.6]} 23... e4 {[%clk
0:02:00.2]} 24. Nd2 {[%clk 0:00:38.5]} 24... Bxf1 {[%clk 0:01:50.2]} 25. Nxf1
{[%clk 0:00:35.2]} 25... Nd3 {[%clk 0:01:50.3]} 26. Qc2 {[%clk 0:00:34.4]} 26...
f5 {[%clk 0:01:40.5]} 27. b3 {[%clk 0:00:30.1]} 27... Be5 {[%clk 0:01:37]} 28.
Bxe5 {[%clk 0:00:27.4]} 28... Qxe5 {[%clk 0:01:37.9]} 29. Ng3 {[%clk 0:00:24.2]}
29... Rf8 {[%clk 0:01:37.1]} 30. Ne2 {[%clk 0:00:23]} 30... Rd8 {[%clk
0:01:33.6]} 31. a3 {[%clk 0:00:19]} 31... Rd6 {[%clk 0:01:30.6]} 32. Nd4 {[%clk
0:00:17.2]} 32... f4 {[%clk 0:01:24.6]} 33. Nb5 {[%clk 0:00:16.4]} 33... Rf6
{[%clk 0:01:24.9]} 34. exf4 {[%clk 0:00:16.3]} 34... Rxf4 {[%clk 0:01:21.6]} 35.
Rd2 {[%clk 0:00:14]} 35... e3 {[%clk 0:01:15.9]} 36. Re2 {[%clk 0:00:09.2]}
36... exf2+ {[%clk 0:01:11.2]} 37. Kf1 {[%clk 0:00:09.4]} 37... Qa1+ {[%clk
0:01:11.4]} 0-1

[Event "Late-Titled-Tuesday-Blitz-January-23-2024"]
[Site "Chess.com"]
[Date "2024.01.23"]
[Round "6"]
[White "dosto07"]
[Black "Mikhal867"]
[Result "1-0"]
[WhiteElo "2538"]
[BlackElo "2420"]
[TimeControl "180+1"]
[EndTime "15:04:05 PST"]
[Termination "dosto07 won on time"]

1. e4 {[%clk 0:03:00.9]} 1... g6 {[%clk 0:01:49.8]} 2. d4 {[%clk 0:03:00.4]}
2... Bg7 {[%clk 0:01:50]} 3. Nf3 {[%clk 0:03:00.8]} 3... d6 {[%clk 0:01:50.4]}
4. Nc3 {[%clk 0:03:00.7]} 4... Nd7 {[%clk 0:01:50.1]} 5. Bc4 {[%clk 0:02:55.1]}
5... e6 {[%clk 0:01:49]} 6. O-O {[%clk 0:02:54.2]} 6... Ne7 {[%clk 0:01:48.9]}
7. a4 {[%clk 0:02:45.1]} 7... h6 {[%clk 0:01:38.3]} 8. h4 {[%clk 0:02:41.6]}
8... O-O {[%clk 0:01:37.9]} 9. Bf4 {[%clk 0:02:41.7]} 9... e5 {[%clk 0:01:27.3]}
10. dxe5 {[%clk 0:02:37.4]} 10... Nxe5 {[%clk 0:01:27.2]} 11. Nxe5 {[%clk
0:02:36.3]} 11... dxe5 {[%clk 0:01:26.7]} 12. Be3 {[%clk 0:02:35]} 12... c6
{[%clk 0:01:15.2]} 13. Qc1 {[%clk 0:02:24.9]} 13... Kh7 {[%clk 0:01:13.7]} 14.
h5 {[%clk 0:02:20.2]} 14... g5 {[%clk 0:01:10.9]} 15. Ne2 {[%clk 0:02:18.4]}
15... Ng8 {[%clk 0:00:56.6]} 16. Ng3 {[%clk 0:02:15.8]} 16... Qe7 {[%clk
0:00:45.8]} 17. c3 {[%clk 0:02:05.1]} 17... Nf6 {[%clk 0:00:42.1]} 18. b4 {[%clk
0:02:02.7]} 18... b6 {[%clk 0:00:39.5]} 19. a5 {[%clk 0:02:01.7]} 19... Ng4
{[%clk 0:00:37.9]} 20. axb6 {[%clk 0:01:49.6]} 20... Nxe3 {[%clk 0:00:35.8]} 21.
Qxe3 {[%clk 0:01:49.6]} 21... a6 {[%clk 0:00:11.9]} 22. Ra5 {[%clk 0:01:44.8]}
22... Bb7 {[%clk 0:00:11]} 23. Rfa1 {[%clk 0:01:43.7]} 23... Rfd8 {[%clk
0:00:09.8]} 24. Nf5 {[%clk 0:01:35]} 24... Qf6 {[%clk 0:00:06.7]} 25. Bxa6
{[%clk 0:01:25.8]} 25... Bxa6 {[%clk 0:00:06.2]} 26. Rxa6 {[%clk 0:01:26.2]}
26... Rxa6 {[%clk 0:00:06.2]} 27. Rxa6 {[%clk 0:01:26.6]} 27... Rd1+ {[%clk
0:00:05.5]} 28. Kh2 {[%clk 0:01:27.1]} 28... g4 {[%clk 0:00:05.9]} 29. Ra7
{[%clk 0:01:18.8]} 29... Bf8 {[%clk 0:00:03.7]} 30. b7 {[%clk 0:01:05.3]} 30...
Bd6 {[%clk 0:00:03.5]} 31. Ra8 {[%clk 0:00:59.2]} 1-0

[Event "Late-Titled-Tuesday-Blitz-January-23-2024"]
[Site "Chess.com"]
[Date "2024.01.23"]
[Round "6"]
[White "FabianoCaruana"]
[Black "mishanick"]
[Result "1-0"]
[WhiteElo "3058"]
[BlackElo "3066"]
[TimeControl "180+1"]
[EndTime "15:04:07 PST"]
[Termination "FabianoCaruana won by resignation"]

1. e4 {[%clk 0:03:00.9]} 1... c5 {[%clk 0:03:00]} 2. Nf3 {[%clk 0:03:01]} 2...
e6 {[%clk 0:03:00.8]} 3. Nc3 {[%clk 0:02:57.2]} 3... Nc6 {[%clk 0:03:00.4]} 4.
h3 {[%clk 0:02:55.1]} 4... a6 {[%clk 0:02:55.6]} 5. d4 {[%clk 0:02:54.4]} 5...
cxd4 {[%clk 0:02:56.5]} 6. Nxd4 {[%clk 0:02:54.8]} 6... Nf6 {[%clk 0:02:50.9]}
7. Nxc6 {[%clk 0:02:54.4]} 7... bxc6 {[%clk 0:02:45.5]} 8. e5 {[%clk 0:02:54.6]}
8... Nd5 {[%clk 0:02:42.6]} 9. Ne4 {[%clk 0:02:54.8]} 9... Qc7 {[%clk
0:02:41.4]} 10. f4 {[%clk 0:02:53.4]} 10... Qb6 {[%clk 0:02:35.9]} 11. c4 {[%clk
0:02:51.2]} 11... Ne3 {[%clk 0:02:32.9]} 12. Qd3 {[%clk 0:02:50.3]} 12... Nxf1
{[%clk 0:02:21.6]} 13. Rxf1 {[%clk 0:02:51.2]} 13... c5 {[%clk 0:02:20.8]} 14.
Be3 {[%clk 0:02:43]} 14... Bb7 {[%clk 0:02:21]} 15. O-O-O {[%clk 0:02:42]} 15...
Rd8 {[%clk 0:02:13.4]} 16. f5 {[%clk 0:02:36.7]} 16... Qc6 {[%clk 0:00:46.3]}
17. fxe6 {[%clk 0:02:25.7]} 17... fxe6 {[%clk 0:00:36.2]} 18. Ng5 {[%clk
0:02:21.5]} 18... Be7 {[%clk 0:00:31.5]} 19. Nf7 {[%clk 0:02:13.7]} 19... O-O
{[%clk 0:00:30.9]} 20. Nxd8 {[%clk 0:02:13.3]} 20... Rxd8 {[%clk 0:00:31.8]} 21.
Rd2 {[%clk 0:02:08.9]} 21... a5 {[%clk 0:00:31.1]} 22. Rdf2 {[%clk 0:02:00.8]}
22... a4 {[%clk 0:00:16.5]} 23. Rf7 {[%clk 0:01:52.9]} 23... Bf8 {[%clk
0:00:16.3]} 24. Bg5 {[%clk 0:01:49.6]} 24... Rb8 {[%clk 0:00:14.4]} 25. Qxd7
{[%clk 0:01:39.5]} 25... Qxd7 {[%clk 0:00:08.8]} 26. Rxd7 {[%clk 0:01:39]} 26...
Bxg2 {[%clk 0:00:09.7]} 27. Rg1 {[%clk 0:01:02.3]} 27... Bxh3 {[%clk 0:00:10.3]}
28. Bf6 {[%clk 0:00:55.9]} 28... g6 {[%clk 0:00:09.8]} 29. Rh1 {[%clk
0:00:55.9]} 29... a3 {[%clk 0:00:01.7]} 30. Rxh3 {[%clk 0:00:54]} 30... axb2+
{[%clk 0:00:01.6]} 31. Kb1 {[%clk 0:00:54.3]} 1-0